fUST/lending_fUST_20250925
["ID","MTS","AMOUNT","RATE_DAILY","PERIOD"]
[387450258,1758731453204,-160.0,0.00021514,2]
[387450259,1758731453214,-532.2324375,0.00021514,2]
[387450260,1758731453223,-360.0,0.00021546,2]
[387450261,1758731453233,-480.0,0.00021643,2]
[387450262,1758731453243,-480.0,0.00021643,2]
[387450263,1758731453252,-480.0,0.00021643,2]
[387450264,1758731453261,-480.0,0.00021643,2]
[387450265,1758731453271,-673.82,0.00021643,2]
[387450266,1758731453280,-671.84,0.00021643,2]
[387450267,1758731453289,-480.0,0.00021643,2]
[387450268,1758731453298,-487.68,0.00021643,2]
[387450269,1758731453308,-810.13,0.00021643,2]
[387450270,1758731453318,-736.51,0.00021643,2]
[387450271,1758731453327,-2335.48,0.00021643,2]
[387450272,1758731453340,-620.46,0.00021643,2]
[387450273,1758731453349,-480.0,0.00021643,2]
[387450274,1758731453359,-480.0,0.00021643,2]
[387450275,1758731453369,-480.0,0.00021643,2]
[387450276,1758731453379,-480.0,0.00021643,2]
[387450277,1758731453389,-480.0,0.00021643,2]
[387450278,1758731453398,-480.0,0.00021643,2]
[387450279,1758731453408,-480.0,0.00021643,2]
[387450280,1758731453418,-480.0,0.00021643,2]
[387450281,1758731453427,-826.0,0.00021643,2]
[387450282,1758731453437,-480.0,0.00021643,2]
[387450283,1758731453447,-480.0,0.00021643,2]
[387450284,1758731453456,-480.0,0.00021643,2]
[387450285,1758731453466,-480.0,0.00021917,2]
[387450286,1758731453475,-480.0,0.00021917,2]
[387450287,1758731453484,-395.80000642,0.00021917,2]
[387450288,1758731453494,-480.0,0.00021917,2]
[387450289,1758731453503,-673.82,0.00021917,2]
[387450290,1758731453513,-671.84,0.00021917,2]
[387450291,1758731453522,-480.0,0.00021917,2]
[387450292,1758731453532,-487.68,0.00021917,2]
[387450293,1758731453541,-810.13,0.00021917,2]
[387450294,1758731453551,-736.51,0.00021917,2]
[387450295,1758731453561,-2335.48,0.00021917,2]
[387450296,1758731453571,-480.0,0.00021917,2]
[387450297,1758731453581,-480.0,0.00021917,2]
[387450298,1758731453591,-480.0,0.00021917,2]
[387450299,1758731453601,-480.0,0.00021917,2]
[387450300,1758731453611,-480.0,0.00021917,2]
[387450301,1758731453620,-480.0,0.00021917,2]
[387450302,1758731453629,-480.0,0.00021917,2]
[387450303,1758731453639,-480.0,0.00021917,2]
[387450304,1758731453650,-826.0,0.00021917,2]
[387450305,1758731453659,-480.0,0.00021917,2]
[387450306,1758731453670,-480.0,0.00021917,2]
[387450307,1758731453679,-480.0,0.00021917,2]
[387450308,1758731453689,-71189.4009811,0.00021998,2]
[387450309,1758731453699,-12928.53,0.00022,2]
[387450310,1758731453708,-501.952108,0.00022018,2]
[387450311,1758731453718,-2582.42265569,0.00022044,2]
[387450312,1758731453728,-460.0,0.00022094,2]
[387450313,1758731453737,-480.0,0.00022191,2]
[387450314,1758731453747,-480.0,0.00022191,2]
[387450315,1758731453757,-480.0,0.00022191,2]
[387450316,1758731453767,-673.82,0.00022191,2]
[387450317,1758731453777,-671.84,0.00022191,2]
[387450318,1758731453787,-480.0,0.00022191,2]
[387450319,1758731453797,-487.68,0.00022191,2]
[387450320,1758731453812,-810.13,0.00022191,2]
[387450321,1758731453831,-736.51,0.00022191,2]
[387450322,1758731453849,-2335.48,0.00022191,2]
[387450323,1758731453864,-480.0,0.00022191,2]
[387450324,1758731453873,-480.0,0.00022191,2]
[387450325,1758731453884,-480.0,0.00022191,2]
[387450326,1758731453894,-480.0,0.00022191,2]
[387450327,1758731453905,-480.0,0.00022191,2]
[387450328,1758731453914,-480.0,0.00022191,2]
[387450329,1758731453925,-275.32533325,0.00022191,2]
[387450330,1758731453935,-480.0,0.00022191,2]
[387450331,1758731453946,-826.0,0.00022191,2]
[387450332,1758731453955,-480.0,0.00022191,2]
[387450333,1758731453965,-480.0,0.00022191,2]
[387450334,1758731453975,-480.0,0.00022191,2]
[387450335,1758731453985,-5978.59511142,0.00022197,2]
[387450336,1758731453995,-882.71,0.00022402,2]
[387450337,1758731454004,-4584.0,0.00022451,2]
[387450338,1758731454013,-388.84770978,0.00022465,2]
[387450339,1758731454022,-480.0,0.00022465,2]
[387450340,1758731454032,-480.0,0.00022465,2]
[387450341,1758731454042,-673.82,0.00022465,2]
[387450342,1758731454051,-671.84,0.00022465,2]
[387450343,1758731454061,-480.0,0.00022465,2]
[387450344,1758731454070,-487.68,0.00022465,2]
[387450345,1758731454079,-810.13,0.00022465,2]
[387450346,1758731454089,-736.51,0.00022465,2]
[387450347,1758731454098,-2335.48,0.00022465,2]
[387450348,1758731454109,-480.0,0.00022465,2]
[387450349,1758731454118,-480.0,0.00022465,2]
[387450350,1758731454127,-480.0,0.00022465,2]
[387450351,1758731454137,-480.0,0.00022465,2]
[387450352,1758731454147,-480.0,0.00022465,2]
[387450353,1758731454157,-480.0,0.00022465,2]
[387450354,1758731454166,-480.0,0.00022465,2]
[387450355,1758731454176,-826.0,0.00022465,2]
[387450356,1758731454186,-480.0,0.00022465,2]
[387450357,1758731454195,-480.0,0.00022465,2]
[387450358,1758731454206,-480.0,0.00022465,2]
[387450359,1758731454216,-634.0,0.0002255,2]
[387450360,1758731454225,-2159.0,0.0002255,2]
[387450361,1758731454235,-410.0,0.0002255,2]
[387450362,1758731454244,-560.0,0.00022642,2]
[387450363,1758731454253,-700.0,0.00022715,2]
[387450364,1758731454263,-480.0,0.00022739,2]
[387450365,1758731454273,-258.96636518,0.00022739,2]
[387450366,1758731454282,-673.82,0.00022739,2]
[387450367,1758731454292,-671.84,0.00022739,2]
[387450368,1758731454301,-480.0,0.00022739,2]
[387450369,1758731454311,-487.68,0.00022739,2]
[387450370,1758731454320,-810.13,0.00022739,2]
[387450371,1758731454330,-736.51,0.00022739,2]
[387450372,1758731454342,-2335.48,0.00022739,2]
[387450373,1758731454353,-480.0,0.00022739,2]
[387450374,1758731454362,-480.0,0.00022739,2]
[387450375,1758731454372,-480.0,0.00022739,2]
[387450376,1758731454382,-480.0,0.00022739,2]
[387450377,1758731454391,-480.0,0.00022739,2]
[387450378,1758731454401,-480.0,0.00022739,2]
[387450379,1758731454410,-480.0,0.00022739,2]
[387450380,1758731454420,-826.0,0.00022739,2]
[387450381,1758731454429,-480.0,0.00022739,2]
[387450382,1758731454439,-480.0,0.00022739,2]
[387450383,1758731454450,-480.0,0.00022739,2]
[387450384,1758731454459,-587.0,0.00022775,2]
[387450385,1758731454469,-24921.11598344,0.00023,3]
[387450386,1758731454478,-532.2324375,0.00023,3]
[387450387,1758731454487,-480.0,0.00023013,2]
[387450388,1758731454497,-671.84,0.00023013,2]
[387450389,1758731454506,-673.82,0.00023013,2]
[387450390,1758731454516,-480.0,0.00023013,2]
[387450391,1758731454525,-487.68,0.00023013,2]
[387450392,1758731454535,-810.13,0.00023013,2]
[387450393,1758731454544,-736.51,0.00023013,2]
[387450394,1758731454554,-2335.48,0.00023013,2]
[387450395,1758731454563,-480.0,0.00023013,2]
[387450396,1758731454573,-480.0,0.00023013,2]
[387450397,1758731454582,-480.0,0.00023013,2]
[387450398,1758731454592,-480.0,0.00023013,2]
[387450399,1758731454601,-480.0,0.00023013,2]
[387450400,1758731454612,-480.0,0.00023013,2]
[387450401,1758731454622,-480.0,0.00023013,2]
[387450402,1758731454632,-826.0,0.00023013,2]
[387450403,1758731454642,-480.0,0.00023013,2]
[387450404,1758731454652,-480.0,0.00023013,2]
[387450405,1758731454661,-480.0,0.00023013,2]
[387450406,1758731454670,-2582.42265569,0.00023116,2]
[387450407,1758731454679,-287.15091979,0.00023137,2]
[387450408,1758731454688,-12500.0,0.00023168,7]
[387450409,1758731454697,-532.2324375,0.00023168,7]
[387450410,1758731454707,-660.0,0.0002319,2]
[387450411,1758731454716,-257.261,0.0002322,3]
[387450412,1758731454725,-851.19360881,0.00023274,2]
[387450413,1758731454733,-480.0,0.00023287,2]
[387450414,1758731454742,-671.84,0.00023287,2]
[387450415,1758731454751,-673.82,0.00023287,2]
[387450416,1758731454762,-480.0,0.00023287,2]
[387450417,1758731454771,-487.68,0.00023287,2]
[387450418,1758731454778,-810.13,0.00023287,2]
[387450419,1758731454786,-736.51,0.00023287,2]
[387450420,1758731454795,-2335.48,0.00023287,2]
[387450421,1758731454804,-587.5606102,0.00023287,2]
[387450422,1758731454813,-480.0,0.00023287,2]
[387450423,1758731454821,-416.4,0.00023287,2]
[387450424,1758731454831,-214.09629055,0.00023287,2]
[387450425,1758731454840,-480.0,0.00023287,2]
[387450426,1758731454849,-480.0,0.00023287,2]
[387450427,1758731454858,-480.0,0.00023287,2]
[387450428,1758731454867,-826.0,0.00023287,2]
[387450429,1758731454876,-205.59384087,0.00023287,2]
[387450430,1758731454885,-480.0,0.00023287,2]
[387450431,1758731454895,-480.0,0.00023287,2]
[387450432,1758731454904,-862.71,0.00023287,2]
[387450433,1758731454915,-1103.38,0.00023336,2]
[387450434,1758731454924,-501.952108,0.00023489,2]
[387450435,1758731454934,-480.0,0.00023561,2]
[387450436,1758731454943,-673.82,0.00023561,2]
[387450437,1758731454953,-671.84,0.00023561,2]
[387450438,1758731454963,-480.0,0.00023561,2]
[387450439,1758731454972,-487.68,0.00023561,2]
[387450440,1758731454981,-810.13,0.00023561,2]
[387450441,1758731454990,-736.51,0.00023561,2]
[387450442,1758731454999,-2335.48,0.00023561,2]
[387450443,1758731455009,-480.0,0.00023561,2]
[387450444,1758731455018,-480.0,0.00023561,2]
[387450445,1758731455027,-480.0,0.00023561,2]
[387450446,1758731455037,-480.0,0.00023561,2]
[387450447,1758731455046,-826.0,0.00023561,2]
[387450448,1758731455056,-480.0,0.00023561,2]
[387450449,1758731455065,-480.0,0.00023561,2]
[387450450,1758731455075,-1147.45507548,0.0002373,2]
[387450451,1758731455084,-645.23691958,0.00023738,2]
[387450452,1758731455094,-1400.0,0.00023789,2]
[387450453,1758731455113,-200.0,0.00023835,2]
[387450454,1758731455122,-200.0,0.00023835,2]
[387450455,1758731455131,-200.0,0.00023835,2]
[387450456,1758731455141,-480.0,0.00023835,2]
[387450457,1758731455150,-673.82,0.00023835,2]
[387450458,1758731455159,-671.84,0.00023835,2]
[387450459,1758731455168,-480.0,0.00023835,2]
[387450460,1758731455179,-487.68,0.00023835,2]
[387450461,1758731455188,-810.13,0.00023835,2]
[387450462,1758731455199,-736.51,0.00023835,2]
[387450463,1758731455209,-2335.48,0.00023835,2]
[387450464,1758731455219,-480.0,0.00023835,2]
[387450465,1758731455228,-480.0,0.00023835,2]
[387450466,1758731455239,-480.0,0.00023835,2]
[387450467,1758731455248,-480.0,0.00023835,2]
[387450468,1758731455258,-826.0,0.00023835,2]
[387450469,1758731455268,-480.0,0.00023835,2]
[387450470,1758731455278,-480.0,0.00023835,2]
[387450471,1758731455287,-168.0,0.00023912,2]
[387450472,1758731455296,-153.9638014,0.00023973,2]
[387450473,1758731455306,-417.15472785,0.00024,3]
[387450474,1758731455400,-417.15472785,0.00024,3]
[387450475,1758731455413,-12928.53,0.00024,2]
[387450476,1758731455423,-528.78,0.00024109,2]
[387450477,1758731455432,-673.82,0.00024109,2]
[387450478,1758731455442,-671.84,0.00024109,2]
[387450479,1758731455452,-515.67402218,0.00024109,2]
[387450480,1758731455463,-487.68,0.00024109,2]
[387450481,1758731455473,-810.13,0.00024109,2]
[387450482,1758731455482,-736.51,0.00024109,2]
[387450483,1758731455491,-2335.48,0.00024109,2]
[387450484,1758731455500,-480.0,0.00024109,2]
[387450485,1758731455509,-526.34,0.00024109,2]
[387450486,1758731455518,-480.0,0.00024109,2]
[387450487,1758731455528,-434.72,0.00024109,2]
[387450488,1758731455537,-826.0,0.00024109,2]
[387450489,1758731455547,-533.0130278,0.00024109,2]
[387450490,1758731455556,-309.65033207,0.00024109,2]
[387450491,1758731455632,-170.34966793,0.00024109,2]
[387450492,1758731455642,-653.71520618,0.00024152,2]
[387450493,1758731455651,-2582.42265569,0.00024187,2]
[387450494,1758731455662,-168.0,0.00024244,2]
[387450495,1758731455671,-1324.06,0.00024269,2]
[387450496,1758731455681,-151.0,0.000243,7]
[387450497,1758731455690,-673.82,0.00024383,2]
[387450498,1758731455700,-671.84,0.00024383,2]
[387450499,1758731455709,-487.68,0.00024383,2]
[387450500,1758731455718,-810.13,0.00024383,2]
[387450501,1758731455728,-736.51,0.00024383,2]
[387450502,1758731455737,-2335.48,0.00024383,2]
[387450503,1758731455746,-480.0,0.00024383,2]
[387450504,1758731455756,-480.0,0.00024383,2]
[387450505,1758731455766,-826.0,0.00024383,2]
[387450506,1758731455775,-480.0,0.00024383,2]
[387450507,1758731455784,-673.82,0.00024657,2]
[387450508,1758731455793,-671.84,0.00024657,2]
[387450509,1758731455803,-487.68,0.00024657,2]
[387450510,1758731455813,-810.13,0.00024657,2]
[387450511,1758731455822,-736.51,0.00024657,2]
[387450512,1758731455831,-2335.48,0.00024657,2]
[387450513,1758731455841,-490.01614706,0.00024657,2]
[387450514,1758731455850,-480.0,0.00024657,2]
[387450515,1758731455860,-826.0,0.00024657,2]
[387450516,1758731455870,-581.96893816,0.00024657,2]
[387450517,1758731455879,-150.0,0.00024658,2]
[387450518,1758731455888,-380.0,0.00024658,2]
[387450519,1758731455898,-6956.861564,0.00024708,2]
[387450520,1758731455907,-151.0,0.00024754,2]
[387450521,1758731455916,-500.0,0.00024754,2]
[387450522,1758731455926,-151.0,0.00024754,2]
[387450523,1758731455935,-500.0,0.00024754,2]
[387450524,1758731455944,-4836.77838108,0.000248,2]
[387450525,1758731455953,-823.0,0.0002482,2]
[387450526,1758731455962,-1400.0,0.00024885,2]
[387450527,1758731455972,-156.0,0.000249,3]
[387450528,1758731455981,-156.0,0.000249,3]
[387450529,1758731455990,-156.0,0.000249,3]
[387450530,1758731456000,-156.0,0.000249,3]
[387450531,1758731456010,-155.53405102,0.000249,3]
[387450532,1758731456019,-151.398941,0.000249,7]
[387450533,1758731456029,-151.0,0.000249,7]
[387450534,1758731456039,-151.0,0.000249,7]
[387450535,1758731456048,-151.0,0.000249,7]
[387450536,1758731456057,-151.0,0.000249,7]
[387450537,1758731456067,-151.0,0.000249,7]
[387450538,1758731456076,-151.0,0.000249,7]
[387450539,1758731456086,-151.0,0.000249,7]
[387450540,1758731456095,-151.0,0.000249,7]
[387450541,1758731456105,-151.0,0.000249,7]
[387450542,1758731456114,-151.0,0.000249,7]
[387450543,1758731456124,-151.0,0.000249,7]
[387450544,1758731456133,-151.0,0.000249,7]
[387450545,1758731456143,-151.0,0.000249,7]
[387450546,1758731456152,-152.497499,0.000249,7]
[387450547,1758731456162,-151.0,0.000249,7]
[387450548,1758731456172,-151.0,0.000249,7]
[387450549,1758731456181,-161.183903,0.000249,7]
[387450550,1758731456190,-151.0,0.000249,7]
[387450551,1758731456200,-151.539539,0.000249,7]
[387450552,1758731456209,-632902.874026,0.000249,2]
[387450553,1758731456219,-151.0,0.000249,7]
[387450554,1758731456229,-151.0,0.000249,7]
[387450555,1758731456239,-151.0,0.000249,7]
[387450556,1758731456248,-151.0,0.000249,7]
[387450557,1758731456258,-151.0,0.000249,7]
[387450558,1758731456267,-151.0,0.000249,7]
[387450559,1758731456277,-151.0,0.000249,7]
[387450560,1758731456286,-151.0,0.000249,7]
[387450561,1758731456296,-205.931712,0.000249,7]
[387450562,1758731456307,-151.0,0.000249,7]
[387450563,1758731456316,-151.0,0.000249,7]
[387450564,1758731456326,-154.585927,0.000249,7]
[387450565,1758731456338,-151.0,0.000249,7]
[387450566,1758731456347,-240.575503,0.000249,7]
[387450567,1758731456358,-151.0,0.000249,7]
[387450568,1758731456367,-850.0,0.000249,7]
[387450569,1758731456377,-850.0,0.000249,7]
[387450570,1758731456386,-151.0,0.000249,7]
[387450571,1758731456396,-151.0,0.000249,7]
[387450572,1758731456405,-151.0,0.000249,7]
[387450573,1758731456414,-850.0,0.000249,7]
[387450574,1758731456423,-151.0,0.000249,7]
[387450575,1758731456433,-850.0,0.000249,7]
[387450576,1758731456442,-151.0,0.000249,7]
[387450577,1758731456452,-151.0,0.000249,7]
[387450578,1758731456463,-230.214037,0.000249,7]
[387450579,1758731456473,-151.0,0.000249,7]
[387450580,1758731456482,-230.214037,0.000249,7]
[387450581,1758731456492,-230.214037,0.000249,7]
[387450582,1758731456502,-230.214037,0.000249,7]
[387450583,1758731456511,-151.0,0.000249,7]
[387450584,1758731456521,-673.82,0.00024931,2]
[387450585,1758731456530,-671.84,0.00024931,2]
[387450586,1758731456540,-487.68,0.00024931,2]
[387450587,1758731456550,-810.13,0.00024931,2]
[387450588,1758731456559,-736.51,0.00024931,2]
[387450589,1758731456568,-2335.48,0.00024931,2]
[387450590,1758731456578,-350.59018741,0.00024931,2]
[387450591,1758731456588,-826.0,0.00024931,2]
[387450592,1758731456598,-501.952108,0.00024959,2]
[387450593,1758731456608,-159.92543582,0.00024999,30]
[387450594,1758731456617,-22820.07682178,0.00025,15]
[387450595,1758731456626,-5000.0,0.00025,50]
[387450596,1758731456636,-417.15472785,0.00025,10]
[387450597,1758731456646,-1000.0,0.00025,5]
[387450598,1758731456656,-161.73256297,0.00025028,2]
[387450599,1758731456665,-500.0,0.00025028,2]
[387450600,1758731456674,-151.0,0.00025028,2]
[387450601,1758731456685,-500.0,0.00025028,2]
[387450602,1758731456695,-251.52420631,0.00025051,30]
[387450603,1758731456704,-5978.59511142,0.0002512,2]
[387450604,1758731456713,-1544.74,0.00025203,2]
[387450605,1758731456722,-673.82,0.00025205,2]
[387450606,1758731456732,-671.84,0.00025205,2]
[387450607,1758731456741,-487.68,0.00025205,2]
[387450608,1758731456750,-810.13,0.00025205,2]
[387450609,1758731456760,-736.51,0.00025205,2]
[387450610,1758731456769,-2335.48,0.00025205,2]
[387450611,1758731456779,-826.0,0.00025205,2]
[387450612,1758731456788,-862.71,0.00025205,4]
[387450613,1758731456798,-250.0,0.00025205,2]
[387450614,1758731456807,-588770.0,0.0002522,2]
[387450615,1758731456817,-151.0,0.0002522,7]
[387450616,1758731456827,-151.0,0.0002522,7]
[387450617,1758731456836,-151.0,0.0002522,7]
[387450618,1758731456846,-151.0,0.0002522,7]
[387450619,1758731456856,-151.0,0.0002522,7]
[387450620,1758731456865,-151.0,0.0002522,7]
[387450621,1758731456875,-151.0,0.0002522,7]
[387450622,1758731456886,-151.0,0.0002522,7]
[387450623,1758731456896,-151.0,0.0002522,7]
[387450624,1758731456908,-151.0,0.0002522,7]
[387450625,1758731456918,-151.0,0.0002522,7]
[387450626,1758731456927,-850.0,0.0002522,7]
[387450627,1758731456938,-850.0,0.0002522,7]
[387450628,1758731456947,-151.0,0.0002522,7]
[387450629,1758731456957,-151.0,0.0002522,7]
[387450630,1758731456967,-850.0,0.0002522,7]
[387450631,1758731456976,-151.0,0.0002522,7]
[387450632,1758731456985,-850.0,0.0002522,7]
[387450633,1758731456996,-151.0,0.0002522,7]
[387450634,1758731457005,-151.0,0.0002522,7]
[387450635,1758731457015,-230.214037,0.0002522,7]
[387450636,1758731457024,-151.0,0.0002522,7]
[387450637,1758731457033,-230.214037,0.0002522,7]
[387450638,1758731457043,-230.214037,0.0002522,7]
[387450639,1758731457053,-230.214037,0.0002522,7]
[387450640,1758731457062,-2582.42265569,0.00025259,3]
[387450641,1758731457072,-500.0,0.00025302,2]
[387450642,1758731457082,-151.0,0.00025302,2]
[387450643,1758731457092,-500.0,0.00025302,2]
[387450644,1758731457102,-5000.0,0.00025376,2]
[387450645,1758731457113,-168.0,0.00025428,2]
[387450646,1758731457122,-674.00762316,0.00025479,2]
[387450647,1758731457131,-671.88488676,0.00025479,2]
[387450648,1758731457140,-487.82,0.00025479,2]
[387450649,1758731457149,-810.29,0.00025479,2]
[387450650,1758731457159,-736.71610687,0.00025479,2]
[387450651,1758731457168,-2335.70324556,0.00025479,2]
[387450652,1758731457178,-826.0563726,0.00025479,2]
[387450653,1758731457188,-160.0,0.00025482,5]
[387450654,1758731457198,-410.0,0.0002555,2]
[387450655,1758731457207,-500.0,0.00025576,2]
[387450656,1758731457217,-179.87995947,0.00025576,2]
[387450657,1758731457227,-500.0,0.00025576,2]
[387450658,1758731457236,-12928.53,0.000256,2]
[387450659,1758731457245,-152.52103604,0.00025753,2]
[387450660,1758731457255,-168.0,0.00025826,2]
[387450661,1758731457264,-500.0,0.0002585,2]
[387450662,1758731457274,-500.0,0.0002585,2]
[387450663,1758731457283,-1400.0,0.00025981,2]
[387450664,1758731457292,-1000.36242526,0.00026,60]
[387450665,1758731457389,-154.0,0.00026,2]
[387450666,1758731457399,-500.0,0.00026058,2]
[387450667,1758731457410,-2095.3508812,0.00026105,2]
[387450668,1758731457420,-422.9872888,0.0002611,2]
[387450669,1758731457431,-160.0,0.00026113,6]
[387450670,1758731457440,-500.0,0.00026124,2]
[387450671,1758731457450,-500.0,0.00026124,2]
[387450672,1758731457459,-1765.41,0.00026136,2]
[387450673,1758731457469,-586.1331603,0.00026164,2]
[387450674,1758731457479,-2582.42265569,0.00026331,5]
[387450675,1758731457489,-500.0,0.00026398,2]
[387450676,1758731457499,-500.0,0.00026398,2]
[387450677,1758731457509,-155.44,0.00026625,7]
[387450678,1758731457520,-500.0,0.00026672,2]
[387450679,1758731457529,-500.0,0.00026672,2]
[387450680,1758731457538,-152.01,0.00026675,7]
[387450681,1758731457546,-155.44,0.00026725,7]
[387450682,1758731457554,-160.0,0.00026744,7]
[387450683,1758731457563,-467.5359777,0.00026763,2]
[387450684,1758731457572,-152.01,0.00026775,7]
[387450685,1758731457581,-155.44,0.00026825,7]
[387450686,1758731457590,-152.01,0.00026875,7]
[387450687,1758731457599,-155.44,0.00026925,7]
[387450688,1758731457609,-319.8133253,0.00026932,2]
[387450689,1758731457619,-500.0,0.00026946,2]
[387450690,1758731457628,-500.0,0.00026946,2]
[387450691,1758731457639,-152.01,0.00026975,7]
[387450692,1758731457648,-532.2324375,0.00027,3]
[387450693,1758731457658,-532.2324375,0.00027,3]
[387450694,1758731457668,-261.71,0.00027,30]
[387450695,1758731457678,-39355.10971359,0.00027,2]
[387450696,1758731457687,-155.44,0.00027025,7]
[387450697,1758731457697,-1152.0,0.00027049,2]
[387450698,1758731457706,-1986.09,0.0002707,2]
[387450699,1758731457716,-152.04930749,0.00027075,7]
[387450700,1758731457725,-1400.0,0.00027077,2]
[387450701,1758731457735,-862.71,0.00027123,6]
[387450702,1758731457744,-155.44,0.00027125,7]
[387450703,1758731457754,-500.0,0.0002722,2]
[387450704,1758731457763,-246.26459046,0.0002722,2]
[387450705,1758731457773,-155.44,0.00027225,7]
[387450706,1758731457783,-155.44,0.00027325,7]
[387450707,1758731457793,-160.0,0.00027375,8]
[387450708,1758731457802,-197.83485447,0.0002739,2]
[387450709,1758731457811,-400.0,0.0002739,7]
[387450710,1758731457821,-150.0,0.0002739,2]
[387450711,1758731457831,-200.0,0.00027397,2]
[387450712,1758731457840,-200.0,0.00027397,2]
[387450713,1758731457849,-200.0,0.00027397,2]
[387450714,1758731457858,-200.0,0.00027397,2]
[387450715,1758731457868,-200.0,0.00027397,2]
[387450716,1758731457877,-200.0,0.00027397,2]
[387450717,1758731457887,-200.0,0.00027397,2]
[387450718,1758731457896,-259.26782013,0.00027397,2]
[387450719,1758731457906,-170.02875655,0.00027397,2]
[387450720,1758731457917,-500.0,0.00027397,7]
[387450721,1758731457927,-500.0,0.00027397,7]
[387450722,1758731457938,-500.0,0.00027397,7]
[387450723,1758731457949,-500.0,0.00027397,7]
[387450724,1758731457960,-500.0,0.00027397,7]
[387450725,1758731457971,-500.0,0.00027397,7]
[387450726,1758731457980,-500.0,0.00027397,7]
[387450727,1758731457991,-500.0,0.00027397,7]
[387450728,1758731458001,-500.0,0.00027397,7]
[387450729,1758731458011,-500.0,0.00027397,7]
[387450730,1758731458020,-500.0,0.00027397,7]
[387450731,1758731458029,-500.0,0.00027397,7]
[387450732,1758731458039,-500.0,0.00027397,7]
[387450733,1758731458048,-500.0,0.00027397,7]
[387450734,1758731458058,-199.82821465,0.00027397,7]
[387450735,1758731458068,-255.93391761,0.00027397,2]
[387450736,1758731458076,-150.0,0.00027397,5]
[387450737,1758731458086,-233.62170814,0.000274,7]
[387450738,1758731458095,-417.15472785,0.000274,7]
[387450739,1758731458105,-12928.53,0.000274,2]
[387450740,1758731458115,-2582.42265569,0.00027403,7]
[387450741,1758731458124,-155.44,0.00027425,15]
[387450742,1758731458134,-316.28412401,0.0002744,2]
[387450743,1758731458144,-42825.41765333,0.0002744,2]
[387450744,1758731458159,-807.57798228,0.0002744,2]
[387450745,1758731458170,-639.16788215,0.0002744,2]
[387450746,1758731579408,235.0944392,0.00018554,2]
[387450749,1758731641637,238.590717,0.00018357,2]
[387450755,1758731971901,188.2320405,0.00019076,2]
[387450763,1758732258036,164.70303549,0.00019074,2]
[387450764,1758732268438,225.19293061,0.00019077,2]
[387450779,1758732403091,-461.46,0.00019168,3]
[387450780,1758732403112,-300.0,0.00019171,2]
[387450781,1758732403132,-290.2461641,0.00019172,2]
[387450790,1758732545866,164.70303543,0.00019071,2]
[387450869,1758732633012,-300.0,0.0001917,2]
[387450871,1758732633022,-300.0,0.0001917,2]
[387450872,1758732633033,-300.0,0.0001917,2]